fUST/lending_fUST_20251208
["ID","MTS","AMOUNT","RATE_DAILY","PERIOD"]
[396922831,1765128429462,-229.79,7.3e-05,2]
[396922832,1765128429483,-229.79,7.5e-05,2]
[396922833,1765128429505,-301.66,7.588e-05,2]
[396922834,1765128429525,-229.79,7.6e-05,2]
[396922835,1765128429546,-229.79,7.8e-05,2]
[396922836,1765128429566,-712.3518244,7.829e-05,2]
[396922837,1765128429589,-377.08,7.904e-05,2]
[396922838,1765128429613,-475.67175223,7.92e-05,2]
[396922839,1765128429635,-229.79,8e-05,2]
[396922840,1765128429657,-229.79,8.2e-05,2]
[396922841,1765128429678,-334.0,8.211e-05,2]
[396922842,1765128429705,-452.49,8.22e-05,2]
[396922843,1765128429730,-600.0,8.364e-05,2]
[396922844,1765128429750,-712.3518244,8.523e-05,2]
[396922845,1765128429777,-527.91,8.536e-05,2]
[396922846,1765128429798,-500.0,8.771e-05,2]
[396922847,1765128429819,-500.0,8.771e-05,2]
[396922848,1765128429843,-300.0,8.771e-05,2]
[396922849,1765128429870,-300.0,8.772e-05,2]
[396922850,1765128429893,-300.0,8.772e-05,2]
[396922851,1765128429914,-300.0,8.772e-05,2]
[396922852,1765128429936,-300.0,8.772e-05,2]
[396922853,1765128429958,-300.0,8.772e-05,2]
[396922854,1765128429983,-300.0,8.772e-05,2]
[396922855,1765128430006,-300.0,8.772e-05,2]
[396922856,1765128430027,-300.0,8.772e-05,2]
[396922857,1765128430050,-300.0,8.772e-05,2]
[396922858,1765128430071,-300.0,8.772e-05,2]
[396922859,1765128430093,-300.0,8.772e-05,2]
[396922860,1765128430117,-300.0,8.772e-05,2]
[396922861,1765128430139,-300.0,8.772e-05,2]
[396922862,1765128430161,-300.0,8.772e-05,2]
[396922863,1765128430182,-300.0,8.772e-05,2]
[396922864,1765128430204,-603.32,8.852e-05,2]
[396922865,1765128430222,-179.32762853,9.119e-05,2]
[396922866,1765128430244,-678.74,9.168e-05,2]
[396922867,1765128430266,-720.0,9.2e-05,2]
[396922868,1765128430286,-713.06417623,9.217e-05,2]
[396922869,1765128430308,-297.99646427,9.458e-05,2]
[396922870,1765128430327,-536.39363568,9.458e-05,2]
[396922871,1765128430347,-408.05509621,9.458e-05,2]
[396923039,1765128451086,-229.79,8.4e-05,2]
[396923040,1765128451108,-229.79,8.6e-05,2]
[396923041,1765128451131,-229.79,8.7e-05,2]
[396923042,1765128451155,-229.79,8.9e-05,2]
[396923043,1765128451176,-13.37811216,9.1e-05,2]
[396923281,1765128492392,151.89,5.1e-05,2]
[396923291,1765128546074,-150.0,6.642e-05,2]
[396923292,1765128546096,-102.05671359,6.785e-05,2]
[396923293,1765128546127,-1051.17012344,6.785e-05,2]
[396923294,1765128546150,-150.0,6.959e-05,2]
[396923295,1765128546172,-150.0,7.275e-05,2]
[396923296,1765128546194,-1153.22683703,7.291e-05,2]
[396923297,1765128546215,-150.0,7.591e-05,2]
[396923298,1765128546236,-1153.22683703,7.797e-05,2]
[396923299,1765128546258,-177.43,7.887e-05,2]
[396923300,1765128546281,-250.0,7.913e-05,2]
[396923301,1765128546303,-212.92,8.202e-05,2]
[396923302,1765128546324,-1153.22683703,8.303e-05,2]
[396923303,1765128546347,-3330.1787797,8.518e-05,2]
[396923304,1765128546373,-248.4,8.518e-05,2]
[396923305,1765128546399,-1153.22683703,8.809e-05,2]
[396923306,1765128546423,-283.89,8.833e-05,2]
[396923307,1765128550690,-319.37,9.149e-05,2]
[396923308,1765128550714,-385.5359863,9.2e-05,2]
[396923309,1765128550734,-1153.22683703,9.315e-05,2]
[396923310,1765128551030,-545.53358944,9.458e-05,2]
[396923311,1765128551052,-354.86,9.464e-05,2]
[396923312,1765128551073,-300.0,9.597e-05,2]
[396923313,1765128551093,-408.92932586,9.598e-05,2]
[396923314,1765128551120,-500.0,9.598e-05,2]
[396923315,1765128551142,-407.40685549,9.598e-05,2]
[396923316,1765128551164,-500.0,9.598e-05,2]
[396923317,1765128551187,-500.0,9.598e-05,2]
[396923318,1765128551211,-500.0,9.598e-05,2]
[396923319,1765128551233,-500.0,9.598e-05,2]
[396923320,1765128551256,-500.0,9.598e-05,2]
[396923321,1765128551279,-500.0,9.598e-05,2]
[396923322,1765128551302,-500.0,9.598e-05,2]
[396923323,1765128551325,-285.18479884,9.598e-05,2]
[396923324,1765128551346,-151.0,9.598e-05,2]
[396923325,1765128551371,-466521.82712782,9.599e-05,2]
[396923326,1765128556404,8.39674186,5.1e-05,2]
[396923327,1765128556435,144.45325814,5.1e-05,2]
[396923328,1765128558094,-152.85,5.3e-05,2]
[396923329,1765128558115,-152.85,5.5e-05,2]
[396923330,1765128558136,-152.85,5.7e-05,2]
[396923331,1765128558157,-95.08279097,5.9e-05,2]
[396923332,1765128559090,-57.76720903,5.9e-05,2]
[396923333,1765128559111,-152.85,6.2e-05,2]
[396923334,1765128559132,-152.85,6.4e-05,2]
[396923335,1765128559153,-152.85,6.6e-05,2]
[396923336,1765128559173,-152.85,6.8e-05,2]
[396923337,1765128559194,-152.85,7e-05,2]
[396923338,1765128559219,-514.74681166,9.599e-05,2]
[396923339,1765128574092,-152.85,7.2e-05,2]
[396923340,1765128574113,-152.85,7.4e-05,2]
[396923341,1765128574133,-122.79165897,7.6e-05,2]
[396923345,1765128613282,151.52,5.1e-05,2]
[396923427,1765128632848,-151.52,5.3e-05,2]
[396923429,1765128632857,-151.52,5.5e-05,2]
[396923431,1765128632866,-151.52,5.7e-05,2]
[396923433,1765128632875,-151.52,5.9e-05,2]
[396923434,1765128632885,-124.88635047,6e-05,2]
[396923437,1765128632896,-26.63364953,6e-05,2]
[396923439,1765128632906,-151.52,6.2e-05,2]
[396923441,1765128632917,-151.52,6.4e-05,2]
[396923443,1765128632926,-151.52,6.6e-05,2]
[396923445,1765128632935,-150.0,6.642e-05,2]
[396923447,1765128632944,-151.52,6.8e-05,2]
[396923449,1765128632953,-150.0,6.958e-05,2]
[396923451,1765128632963,-151.52,7e-05,2]
[396923453,1765128632972,-151.52,7.2e-05,2]
[396923455,1765128632981,-150.0,7.274e-05,2]
[396923457,1765128632991,-151.52,7.4e-05,2]
[396923459,1765128633000,-151.52,7.6e-05,2]
[396923461,1765128633013,-151.52,7.8e-05,2]
[396923463,1765128633022,-151.52,7.9e-05,2]
[396923465,1765128633032,-151.52,8.1e-05,2]
[396923467,1765128633042,-151.52,8.3e-05,2]
[396923469,1765128633052,-151.52,8.5e-05,2]
[396923471,1765128633062,-222.0,8.7e-05,2]
[396923473,1765128633071,-151.52,8.7e-05,2]
[396923474,1765128633080,-151.52,8.9e-05,2]
[396923476,1765128633089,-151.52,9.1e-05,2]
[396923477,1765128633098,-151.52,9.3e-05,2]
[396923478,1765128633108,-500.0,9.498e-05,2]
[396923479,1765128633117,-286.25052811,9.498e-05,2]
[396923480,1765128633127,-500.0,9.498e-05,2]
[396923481,1765128633137,-500.0,9.498e-05,2]
[396923482,1765128633146,-500.0,9.498e-05,2]
[396923483,1765128633156,-499.62935919,9.498e-05,2]
[396923484,1765128633166,-42893.90734306,9.499e-05,2]
[396924013,1765128638631,-928.98345371,9.499e-05,2]
[396924015,1765128638643,-1703.45085993,9.499e-05,2]
[396924021,1765128638687,-2472.99554256,9.499e-05,2]
[396924023,1765128638699,-435.0,9.499e-05,2]
[396924024,1765128638711,-1442.73549134,9.499e-05,2]
[396924220,1765128640833,-890.80323467,9.499e-05,2]
[396924223,1765128640853,-528.89051107,9.499e-05,2]
[396924228,1765128640893,-733.73686278,9.499e-05,2]
[396924235,1765128640949,-4479.94723236,9.499e-05,2]
[396924237,1765128640959,-151.52,9.5e-05,2]
[396924239,1765128640969,-743.0633244,9.599e-05,2]
[396924241,1765128640979,-2496.03758288,9.6e-05,2]
[396924243,1765128640988,-151.52,9.6e-05,2]
[396924245,1765128640998,-300.0,9.789e-05,2]
[396924247,1765128641008,-300.0,9.789e-05,2]
[396924249,1765128641019,-267.91186036,9.789e-05,2]
[396924251,1765128641030,-32.08813964,9.789e-05,2]
[396924253,1765128641040,-278.18186036,9.789e-05,2]
[396924256,1765128641051,-21.81813964,9.789e-05,2]
[396924258,1765128641061,-300.0,9.789e-05,2]
[396924260,1765128641070,-300.0,9.789e-05,2]
[396924262,1765128641080,-300.0,9.789e-05,2]
[396924264,1765128641091,-300.0,9.789e-05,2]
[396924266,1765128641100,-162.06588531,9.789e-05,2]
[396924626,1765128644596,-137.93411469,9.789e-05,2]
[396924628,1765128644606,-300.0,9.789e-05,2]
[396924629,1765128644615,-300.0,9.789e-05,2]
[396924631,1765128644625,-300.0,9.789e-05,2]
[396924633,1765128644635,-300.0,9.789e-05,2]
[396924635,1765128644644,-283.14928556,9.789e-05,2]
[396924765,1765128646893,-16.85071444,9.789e-05,2]
[396924766,1765128646902,-300.0,9.789e-05,2]
[396924767,1765128646912,-461.92841712,9.789e-05,2]
[396924768,1765128646923,-138.07158288,9.789e-05,2]
[396924769,1765128646932,-151.52,9.8e-05,2]
[396924770,1765128646941,-1154.38006387,9.821e-05,2]
[396924771,1765128646950,-399.31076779,9.823e-05,2]
[396924772,1765128646958,-165.7998385,9.841e-05,2]
[396924773,1765128646967,-348.64449657,9.868e-05,2]
[396929751,1765128785993,154.52,5.1e-05,2]
[396929763,1765128850992,154.62,5.1e-05,2]
[396929774,1765128902111,154.52,5.1e-05,2]
[396929901,1765128972597,154.62,5.1e-05,2]
[396930010,1765129024391,154.52,5.1e-05,2]
[396930084,1765129095132,154.62,5.1e-05,2]
[396930168,1765129142587,154.52,5.1e-05,2]
[396930311,1765129174545,840.93310287,9.638e-05,3]
[396930421,1765129214755,154.62,5.1e-05,2]
[396930447,1765129262573,154.52,5.1e-05,2]
[396930457,1765129307996,442.4880685,9.638e-05,3]
[396930459,1765129334638,154.62,5.1e-05,2]
[396930460,1765129382200,154.52,5.1e-05,2]
[396931011,1765129451201,154.62,5.1e-05,2]
[396931016,1765129503217,154.52,5.1e-05,2]
[396931036,1765129580122,154.62,5.1e-05,2]
[396931102,1765129622820,154.52,5.1e-05,2]
[396931103,1765129633085,-154.52,5.4e-05,2]
[396931104,1765129633112,-55.4701174,5.55e-05,2]
[396931105,1765129638087,-326.06910059,5.55e-05,2]
[396931106,1765129638111,-154.52,5.7e-05,2]
[396931107,1765129638135,-154.52,6.1e-05,2]
[396931108,1765129638157,-9.05820933,6.104e-05,2]
[396931110,1765129642092,-194.94179067,6.104e-05,2]
[396931111,1765129642120,-154.52,6.4e-05,2]
[396931112,1765129642143,-150.0,6.659e-05,2]
[396931113,1765129642165,-154.52,6.7e-05,2]
[396931114,1765129642187,-124.50137664,7e-05,2]
[396931143,1765129691000,150.25,5.1e-05,2]
[396931144,1765129744448,250.0,9.637e-05,3]
[396931145,1765129745101,-450.21627723,7.55e-05,2]
[396931146,1765129745121,-160.0,7.796e-05,2]
[396931147,1765129745143,-189.98205564,8.284e-05,2]
[396931148,1765129745164,-403.30815636,8.65e-05,2]
[396931149,1765129745184,-215.74778045,8.699e-05,2]
[396931150,1765129745205,-388.34600481,8.699e-05,2]
[396931151,1765129745226,-689.70250454,8.699e-05,2]
[396931152,1765129745247,-175.0,8.719e-05,2]
[396931153,1765129745267,-609.17020362,8.72e-05,2]
[396931154,1765129745286,-12.66801925,9.285e-05,2]
[396931155,1765129745699,155.64,5.1e-05,2]
[396931156,1765129753089,-155.64,5.5e-05,2]
[396931157,1765129753110,-155.64,5.9e-05,2]
[396931158,1765129753135,-155.64,6.3e-05,2]
[396931159,1765129753157,-155.64,6.7e-05,2]
[396931160,1765129753181,-155.64,7.1e-05,2]
[396931161,1765129753202,-155.64,7.5e-05,2]
[396931162,1765129753226,-373.90843363,7.673e-05,2]
[396931163,1765129753249,-155.64,7.9e-05,2]
[396931164,1765129753270,-155.64,8.3e-05,2]
[396931165,1765129753290,-114.53669288,8.7e-05,2]
[396931168,1765129774133,-41.10330712,8.7e-05,2]
[396931169,1765129774157,-155.64,9.1e-05,2]
[396931170,1765129774183,-152.09362375,9.285e-05,2]
[396931171,1765129774203,-289.14306913,9.503e-05,2]
[396931172,1765129807456,153.74,5.1e-05,2]
[396931214,1765129831762,-153.74,5.7e-05,2]
[396931216,1765129831771,-153.74,6.2e-05,2]
[396931218,1765129831781,-153.74,6.8e-05,2]
[396931220,1765129831790,-153.74,7.3e-05,2]
[396931222,1765129831800,-153.74,7.9e-05,2]
[396931224,1765129831809,-153.74,8.4e-05,2]
[396931226,1765129831819,-153.74,9e-05,2]
[396931228,1765129831828,-152.0,9.325e-05,2]
[396931230,1765129831838,-300.0,9.503e-05,2]
[396931232,1765129831847,-30.94554849,9.503e-05,2]
[396931569,1765129837802,-197.05445151,9.503e-05,2]
[396931570,1765129837811,-226.0,9.503e-05,2]
[396931571,1765129837821,-184.11071401,9.503e-05,2]
[396931572,1765129837830,-3639.84127216,9.504e-05,2]
[396931573,1765129837842,-776.68808795,9.504e-05,2]
[396931574,1765129837920,-71.57414555,9.504e-05,2]
[396931575,1765129837931,-8124.99654029,9.504e-05,2]
[396931576,1765129837941,-200.37536967,9.505e-05,2]
[396931577,1765129837951,-500.0,9.505e-05,2]
[396931578,1765129837961,-500.0,9.505e-05,2]
[396931579,1765129837970,-500.0,9.505e-05,2]
[396931580,1765129837979,-315.62358671,9.505e-05,2]
[396931581,1765129837989,-152.0,9.506e-05,2]
[396931582,1765129837998,-152.0,9.506e-05,2]
[396931583,1765129838007,-152.0,9.506e-05,2]
[396931584,1765129838016,-152.0,9.506e-05,2]
[396931585,1765129838026,-152.0,9.506e-05,2]
[396931586,1765129838037,-152.0,9.506e-05,2]
[396931587,1765129838046,-152.0,9.506e-05,2]
[396931588,1765129838056,-152.0,9.506e-05,2]
[396931589,1765129838066,-334.0,9.506e-05,2]
[396931591,1765129838075,-334.0,9.506e-05,2]
[396931593,1765129838085,-152.0,9.506e-05,2]
[396931595,1765129838094,-152.0,9.506e-05,2]
[396931597,1765129838103,-334.0,9.506e-05,2]
[396931599,1765129838113,-152.0,9.506e-05,2]
[396931601,1765129838122,-334.0,9.506e-05,2]
[396931603,1765129838131,-152.0,9.506e-05,2]
[396931605,1765129838140,-334.0,9.506e-05,2]
[396931607,1765129838150,-152.0,9.506e-05,2]
[396931609,1765129838163,-334.0,9.506e-05,2]
[396931611,1765129838172,-152.0,9.506e-05,2]
[396931613,1765129838182,-334.0,9.506e-05,2]
[396931615,1765129838191,-152.0,9.506e-05,2]
[396931617,1765129838203,-334.0,9.506e-05,2]
[396931619,1765129838211,-334.0,9.506e-05,2]
[396931621,1765129838220,-152.0,9.506e-05,2]
[396931623,1765129838229,-334.0,9.506e-05,2]
[396931624,1765129838238,-152.0,9.506e-05,2]
[396931626,1765129838247,-334.0,9.506e-05,2]
[396931627,1765129838257,-152.0,9.506e-05,2]
[396931629,1765129838267,-334.0,9.506e-05,2]
[396931631,1765129838276,-152.0,9.506e-05,2]
[396931633,1765129838286,-152.0,9.506e-05,2]
[396931635,1765129838295,-334.0,9.506e-05,2]
[396931637,1765129838304,-152.0,9.506e-05,2]
[396931639,1765129838313,-334.0,9.506e-05,2]
[396931641,1765129838322,-269.09137456,9.506e-05,2]
[396931643,1765129838332,-334.0,9.506e-05,2]
[396931645,1765129838342,-334.0,9.506e-05,2]
[396931647,1765129838351,-91.07893056,9.506e-05,2]
[396931649,1765129838364,-242.92106944,9.506e-05,2]
[396931651,1765129838373,-334.0,9.506e-05,2]
[396931653,1765129838383,-334.0,9.506e-05,2]
[396931655,1765129838393,-334.0,9.506e-05,2]
[396931657,1765129838403,-334.0,9.506e-05,2]
[396931659,1765129838413,-334.0,9.506e-05,2]
[396931661,1765129838422,-334.0,9.506e-05,2]
[396931663,1765129838432,-334.0,9.506e-05,2]
[396931665,1765129838441,-334.0,9.506e-05,2]
[396931667,1765129838450,-334.0,9.506e-05,2]
[396931669,1765129838460,-334.0,9.506e-05,2]
[396931671,1765129838469,-334.0,9.506e-05,2]
[396931673,1765129838479,-334.0,9.506e-05,2]
[396931675,1765129838488,-334.0,9.506e-05,2]
[396931677,1765129838497,-334.0,9.506e-05,2]
[396931679,1765129838506,-334.0,9.506e-05,2]
[396931681,1765129838515,-249.19106346,9.506e-05,2]
[396931683,1765129838527,-84.80893654,9.506e-05,2]
[396931685,1765129838536,-334.0,9.506e-05,2]
[396931687,1765129838545,-334.0,9.506e-05,2]
[396931689,1765129838555,-334.0,9.506e-05,2]
[396931691,1765129838564,-334.0,9.506e-05,2]
[396931692,1765129838573,-334.0,9.506e-05,2]
[396931694,1765129838583,-60.46496216,9.506e-05,2]
[396931697,1765129838602,-273.53503784,9.506e-05,2]
[396931699,1765129838612,-334.0,9.506e-05,2]
[396931701,1765129838621,-334.0,9.506e-05,2]
[396931703,1765129838630,-334.0,9.506e-05,2]
[396931705,1765129838639,-334.0,9.506e-05,2]
[396931707,1765129838648,-334.0,9.506e-05,2]
[396931709,1765129838657,-334.0,9.506e-05,2]
[396931710,1765129838667,-334.0,9.506e-05,2]
[396931712,1765129838677,-334.0,9.506e-05,2]
[396931714,1765129838686,-334.0,9.506e-05,2]
[396931716,1765129838696,-334.0,9.506e-05,2]
[396931718,1765129838705,-334.0,9.506e-05,2]
[396931720,1765129838714,-334.0,9.506e-05,2]
[396931722,1765129838723,-334.0,9.506e-05,2]
[396931724,1765129838732,-334.0,9.506e-05,2]
[396931726,1765129838742,-334.0,9.506e-05,2]
[396931728,1765129838752,-334.0,9.506e-05,2]
[396931730,1765129838762,-334.0,9.506e-05,2]
[396931732,1765129838771,-334.0,9.506e-05,2]
[396931734,1765129838782,-247.49620686,9.506e-05,2]
[396931736,1765129838791,-52.3893244,9.506e-05,2]
[396932237,1765129843812,-281.6106756,9.506e-05,2]
[396932239,1765129843822,-334.0,9.506e-05,2]
[396932241,1765129843831,-334.0,9.506e-05,2]
[396932242,1765129843840,-174.0,9.506e-05,2]
[396932243,1765129843849,-174.0,9.506e-05,2]
[396932244,1765129843858,-176.20077535,9.506e-05,2]
[396932245,1765129843867,-500.0,9.506e-05,2]
[396932246,1765129843879,-1410.4874318,9.531e-05,2]
[396932247,1765129843888,-153.74,9.6e-05,2]
[396932248,1765129843897,-441.21195169,9.673e-05,2]
[396932249,1765129843907,-399.31076779,9.76e-05,2]
[396932251,1765129843916,-151.0,9.792e-05,2]
[396932253,1765129843926,-250.0,9.867e-05,2]
[396932255,1765129843935,-151.0,9.929e-05,2]
[396932257,1765129843944,-1075.79071273,0.0001,2]
[396932259,1765129843954,-159.6,0.0001,2]
[396932261,1765129843964,-10000.0,0.0001,2]
[396932263,1765129843973,-151.0,0.0001,2]
[396932265,1765129843983,-252.53532947,0.0001,2]
[396932267,1765129843992,-151.0,0.0001,2]
[396932269,1765129844001,-151.0,0.0001,2]
[396932271,1765129844010,-151.0,0.0001,2]
[396932273,1765129844020,-151.0,0.0001,2]
[396932275,1765129844029,-151.0,0.0001,2]
[396932277,1765129844040,-151.0,0.0001,2]
[396932279,1765129844050,-151.0,0.0001,2]
[396932281,1765129844059,-151.0,0.0001,2]
[396932283,1765129844068,-151.0,0.0001,2]
[396932285,1765129844078,-151.0,0.0001,2]
[396932287,1765129844088,-157.63042452,0.0001,2]
[396932289,1765129844097,-151.0,0.0001,2]
[396932291,1765129844107,-297.83047393,0.00010063,2]
[396932293,1765129844117,-536.09485308,0.00010063,2]
[396932295,1765129844126,-952.10445907,0.00010063,2]
[396932297,1765129844135,-153.74,0.000101,2]
[396932300,1765129844145,-800.0,0.00010141,2]
[396932302,1765129844155,-238.9132762,0.00010142,2]
[396932304,1765129844168,-300.0,0.00010199,2]
[396932306,1765129844177,-300.0,0.00010199,2]
[396932308,1765129844187,-300.0,0.00010199,2]
[396932310,1765129844196,-300.0,0.00010199,2]
[396932312,1765129844206,-300.0,0.00010199,2]
[396932314,1765129844215,-300.0,0.00010199,2]
[396932316,1765129844224,-300.0,0.00010199,2]
[396932318,1765129844234,-300.0,0.00010199,2]
[396932320,1765129844243,-300.0,0.00010199,2]
[396932322,1765129844253,-300.0,0.00010199,2]
[396932324,1765129844262,-300.0,0.00010199,2]
[396932326,1765129844271,-300.0,0.00010199,2]
[396932328,1765129844280,-300.0,0.00010199,2]
[396932330,1765129844290,-300.0,0.00010199,2]
[396932332,1765129844301,-300.0,0.00010199,2]
[396932334,1765129844310,-600.0,0.00010199,2]
[396932336,1765129844319,-2230.315306,0.00010289,2]
[396932338,1765129844328,-259.25,0.00010289,2]
[396932340,1765129844338,-250.814,0.00010326,2]
[396932342,1765129844347,-250.0,0.00010326,2]
[396932344,1765129844356,-150.289,0.00010326,2]
[396932346,1765129844365,-251.0,0.00010453,2]
[396932348,1765129844375,-151.0,0.00010548,2]
[396932350,1765129844384,-156.71452426,0.00010593,2]
[396932352,1765129844393,-282.08614367,0.00010593,2]
[396932354,1765129844402,-500.98499115,0.00010593,2]
[396932356,1765129844411,-168.3522427,0.00010685,2]
[396932358,1765129844420,-153.74,0.000107,2]
[396932360,1765129844430,-1842.95413167,0.00010837,2]
[396932562,1765129846421,-469.88284065,0.00010837,2]
[396932564,1765129846431,-8622.78705836,0.00010923,2]
[396932566,1765129846443,-11369.91270498,0.00010923,2]
[396932568,1765129846455,-341.0,0.00010923,2]
[396932583,1765129846600,-8811.44475609,0.00010923,2]
[396934893,1765129870612,198.12,5.1e-05,2]
[396939541,1765129922100,160.08,5.1e-05,2]
[396941723,1765129985225,156.95,5.1e-05,2]
[396941732,1765130049114,159.62,5.1e-05,2]
[396941734,1765130104957,157.1,5.1e-05,2]
[396941737,1765130169065,159.26,5.1e-05,2]
[396941738,1765130225663,157.22,5.1e-05,2]
[396941758,1765130288784,158.97,5.1e-05,2]
[396942230,1765130345171,157.32,5.1e-05,2]
[396942270,1765130408792,158.73,5.1e-05,2]
[396942300,1765130465298,157.4,5.1e-05,2]
[396942328,1765130528687,158.53,5.1e-05,2]
[396942356,1765130586819,157.46,5.1e-05,2]
[396942384,1765130649573,158.39,5.1e-05,2]
[396942417,1765130705189,157.51,5.1e-05,2]
[396942487,1765130768920,158.26,5.1e-05,2]
[396942498,1765130825060,157.55,5.1e-05,2]
[396942502,1765130836091,-157.55,5.6e-05,2]
[396942503,1765130836112,-195.33102209,5.85e-05,2]
[396942507,1765130844085,-6.66897791,5.85e-05,2]
[396942508,1765130844109,-157.55,6.1e-05,2]
[396942509,1765130844129,-352.36979551,6.225e-05,2]
[396942510,1765130844151,-157.55,6.7e-05,2]
[396942511,1765130844174,-157.55,7.2e-05,2]
[396942512,1765130844196,-157.55,7.7e-05,2]
[396942513,1765130844219,-157.55,8.2e-05,2]
[396942514,1765130844240,-137.50066577,8.225e-05,2]
[396942518,1765130850092,-278.29569293,8.225e-05,2]
[396942519,1765130850114,-157.55,8.8e-05,2]
[396942520,1765130850135,-157.55,9.3e-05,2]
[396942521,1765130850157,-223.75886405,9.476e-05,2]
[396942558,1765130886974,157.84,5.1e-05,2]
[396942616,1765130920438,324.0,0.000211,99]
[396942632,1765130943390,250.0,9.636e-05,3]
[396942647,1765130947398,157.58,5.1e-05,2]
[396942649,1765130949082,-157.58,6.1e-05,2]
[396942650,1765130949104,-157.58,7.1e-05,2]
[396942651,1765130949128,-157.58,8.1e-05,2]
[396942652,1765130949152,-134.08568476,9.1e-05,2]
[396942673,1765130954156,-23.49431524,9.1e-05,2]
[396942674,1765130954177,-976.24113595,9.476e-05,2]
[396942675,1765130954196,-300.0,9.476e-05,2]
[396942676,1765130954216,-12711.51997747,9.477e-05,2]
[396942727,1765131006608,157.77,5.1e-05,2]
[396942729,1765131006886,157.77,5.6e-05,2]
[396942730,1765131007354,146.54301291,6.1e-05,2]
[396942771,1765131032104,-11.22698709,6.1e-05,2]
[396942772,1765131032115,-337.00647243,6.35e-05,2]
[396942773,1765131032125,-157.77,6.6e-05,2]
[396942774,1765131032135,-157.77,7.1e-05,2]
[396942775,1765131032146,-157.77,7.6e-05,2]
[396942776,1765131032155,-145.61574048,8.1e-05,2]
[396942809,1765131038048,-12.15425952,8.1e-05,2]
[396942811,1765131038057,-397.66763746,8.35e-05,2]
[396942813,1765131038067,-157.77,8.6e-05,2]
[396942815,1765131038076,-157.77,9.1e-05,2]
[396942817,1765131038086,-269.89394125,9.335e-05,2]
[396942819,1765131038096,-227.0,9.335e-05,2]
[396942821,1765131038106,-85.24757583,9.477e-05,2]
[396942823,1765131038115,-227.88999402,9.5e-05,2]
[396942825,1765131038124,-157.77,9.6e-05,2]
[396942827,1765131038134,-120.52741973,9.666e-05,2]
[396942829,1765131038146,-179.47258027,9.666e-05,2]
[396942831,1765131038156,-300.0,9.666e-05,2]
[396942833,1765131038165,-300.0,9.666e-05,2]
[396942835,1765131038174,-300.0,9.666e-05,2]
[396942837,1765131038183,-300.0,9.666e-05,2]
[396942839,1765131038194,-300.0,9.666e-05,2]
[396942842,1765131038204,-300.0,9.666e-05,2]
[396942844,1765131038214,-152.94046444,9.666e-05,2]
[396942847,1765131038226,-147.05953556,9.666e-05,2]
[396942849,1765131038235,-300.0,9.666e-05,2]
[396942851,1765131038244,-220.02366643,9.666e-05,2]
[396943079,1765131040389,-79.97633357,9.666e-05,2]
[396943081,1765131040399,-62.72249301,9.666e-05,2]
[396943084,1765131040417,-237.27750699,9.666e-05,2]
[396943086,1765131040427,-300.0,9.666e-05,2]
[396943088,1765131040436,-300.0,9.666e-05,2]
[396943090,1765131040445,-300.0,9.666e-05,2]
[396943092,1765131040454,-300.0,9.666e-05,2]
[396943094,1765131040463,-399.31076779,9.787e-05,2]
[396943096,1765131040472,-10000.0,0.0001,2]
[396943098,1765131040486,-157.77,0.0001,2]
[396943101,1765131040495,-151.0,0.0001,2]
[396943103,1765131040504,-205.03525852,0.00010063,2]
[396943105,1765131040513,-369.06346534,0.00010063,2]
[396943107,1765131040522,-415.0,0.00010068,2]
[396943109,1765131040531,-275.54302555,0.00010114,3]
[396943110,1765131040543,-2230.315306,0.00010176,2]
[396943112,1765131040554,-458.3288025,0.0001035,2]
[396943114,1765131040563,-600.0,0.00010401,2]
[396943117,1765131040574,-231.315,0.00010432,2]
[396943118,1765131040584,-150.0,0.00010432,2]
[396943121,1765131040593,-157.77,0.000105,2]
[396943123,1765131040602,-341.31,0.00010517,2]